bitfinex/quotes_ETHUSD_20230110
["timestamp","ask_amount","ask_price","bid_price","bid_amount"]
[1673334238371,1.69396141,1325.0,1324.9,0.03830347]
[1673334240079,2.8230472,1325.0,1324.9,0.03830347]
[1673334241624,1.12908579,1325.0,1324.9,0.03830347]
[1673334242956,1.11858986,1325.0,1324.9,1.91128744]
[1673334243407,1.11858986,1325.0,1324.9,1.9112682]
[1673334246320,1.11858986,1325.0,1324.9,2.98219244]
[1673334248210,1.16858986,1325.0,1324.9,2.98219244]
[1673334252380,1.11858986,1325.0,1324.9,2.98219244]
[1673334252571,1.11858986,1325.0,1324.9,1.9112682]
[1673334256266,2.81255127,1325.0,1324.9,1.9112682]
[1673334256645,2.86255127,1325.0,1324.9,1.9112682]
[1673334256863,1.74396141,1325.0,1324.9,0.03830347]
[1673334258421,2.87353919,1325.0,1324.9,0.03830347]
[1673334258632,1.69396141,1325.0,1324.9,0.03830347]
[1673334260421,3.95261169,1325.0,1324.9,0.03830347]
[1673334264144,6.3922754,1325.0,1324.9,0.03468503]
[1673334264336,6.4192754,1325.0,1324.9,0.03468503]
[1673334267004,4.16062512,1325.0,1324.9,0.03468503]
[1673334267177,1.69396141,1325.0,1324.9,0.03468503]
[1673334268052,11.49977169,1325.0,1324.9,0.03468503]
[1673334268218,9.26812141,1325.0,1324.9,0.03468503]
[1673334272154,10.39741064,1325.0,1324.9,0.03468503]
[1673334277251,9.26812141,1325.0,1324.9,0.03468503]
[1673334277461,13.22857912,1325.0,1324.9,0.03468503]
[1673334277889,15.4872294,1325.0,1324.9,0.03468503]
[1673334279413,13.22857912,1325.0,1324.9,0.03468503]
[1673334279829,1.72096141,1325.0,1324.9,0.03468503]
[1673334280123,1.69396141,1325.0,1324.9,0.03468503]
[1673334281002,9.24112141,1325.0,1324.9,0.03468503]
[1673334281216,9.26812141,1325.0,1324.9,0.03468503]
[1673334281417,11.52677169,1325.0,1324.9,0.03468503]
[1673334284660,13.79326599,1325.0,1324.9,0.03468503]
[1673334285932,13.79326599,1325.0,1324.9,0.0311196]
[1673334289500,15.4868107,1325.0,1324.9,0.0311196]
[1673334289713,15.48674534,1325.0,1324.9,0.0311196]
[1673334289925,15.48681595,1325.0,1324.9,0.0311196]
[1673334291814,13.79326599,1325.0,1324.9,0.0311196]
[1673334292893,13.78976664,1325.0,1324.9,0.0311196]
[1673334293074,15.48341102,1325.0,1324.9,0.0311196]
[1673334293501,13.78976664,1325.0,1324.9,0.0311196]
[1673334294119,15.4836635,1325.0,1324.9,0.0311196]
[1673334294330,13.78976664,1325.0,1324.9,0.0311196]
[1673334294593,16.61311209,1325.0,1324.9,0.0311196]
[1673334295208,13.78976664,1325.0,1324.9,0.0311196]
[1673334295840,16.61311209,1325.0,1324.9,0.0311196]
[1673334297380,24.16027209,1325.0,1324.9,0.0311196]
[1673334299900,16.61311209,1325.0,1324.9,0.0311196]
[1673334300644,24.16027209,1325.0,1324.9,0.0311196]
[1673334301004,16.61311209,1325.0,1324.9,0.0311196]
[1673334301839,24.16027209,1325.0,1324.9,0.0311196]
[1673334302160,16.61311209,1325.0,1324.9,0.0311196]
[1673334304531,24.16027209,1325.0,1324.9,0.0311196]
[1673334306009,16.61311209,1325.0,1324.9,0.0311196]
[1673334306219,24.16027209,1325.0,1324.9,0.0311196]
[1673334306678,13.78976664,1325.0,1324.9,0.0311196]
[1673334307505,21.33692664,1325.0,1324.9,0.0311196]
[1673334308025,13.78976664,1325.0,1324.9,0.0311196]
[1673334311128,21.33692664,1325.0,1324.9,0.0311196]
[1673334311493,13.78976664,1325.0,1324.9,0.0311196]
[1673334311706,21.33692664,1325.0,1324.9,0.0311196]
[1673334311933,24.16027209,1325.0,1324.9,0.0311196]
[1673334312156,16.61311209,1325.0,1324.9,0.0311196]
[1673334317084,16.61311209,1325.0,1324.9,0.02730662]
[1673334318260,20.41077273,1325.0,1324.9,0.02730662]
[1673334318888,27.95793273,1325.0,1324.9,0.02730662]
[1673334319075,28.52413273,1325.0,1324.9,0.02730662]
[1673334320464,27.95793273,1325.0,1324.9,0.02730662]
[1673334321435,12.86711208,1325.0,1324.9,0.02730662]
[1673334321712,8.90665637,1325.0,1324.9,0.02730662]
[1673334321883,6.08331092,1325.0,1324.9,0.02730662]
[1673334327541,8.90665637,1325.0,1324.9,0.02730662]
[1673334328249,6.08331092,1325.0,1324.9,0.02730662]
[1673334329023,8.90665637,1325.0,1324.9,0.02730662]
[1673334331319,12.71819846,1325.0,1324.9,0.02730662]
[1673334331550,10.45954818,1325.0,1324.9,0.02730662]
[1673334331772,18.00670818,1325.0,1324.9,0.02730662]
[1673334336068,10.45954818,1325.0,1324.9,0.02730662]
[1673334336938,25.55386818,1325.0,1324.9,0.02730662]
[1673334339555,25.55386818,1325.0,1324.9,0.02433209]
[1673334339556,25.60386818,1325.0,1324.9,0.02433209]
[1673334340287,10.50954818,1325.0,1324.9,0.02433209]
[1673334340442,13.00954818,1325.0,1324.9,0.02433209]
[1673334340915,20.55670818,1325.0,1324.9,0.02433209]
[1673334341408,20.50670818,1325.0,1324.9,0.02433209]
[1673334343316,28.05386818,1325.0,1324.9,0.02433209]
[1673334343535,28.10386818,1325.0,1324.9,0.02433209]
[1673334344355,25.60386818,1325.0,1324.9,0.02433209]
[1673334345804,18.05670818,1325.0,1324.9,0.02433209]
[1673334347752,18.00670818,1325.0,1324.9,0.02433209]
[1673334355907,17.49336005,1325.0,1324.9,0.02433209]
[1673334356121,19.18844254,1325.0,1324.9,0.02433209]
[1673334356368,11.64128254,1325.0,1324.9,0.02433209]
[1673334357260,25.04052005,1325.0,1324.9,0.02433209]
[1673334357470,27.8638655,1325.0,1324.9,0.02433209]
[1673334357908,27.8138655,1325.0,1324.9,0.02433209]
[1673334360363,27.8138655,1325.0,1324.9,0.02205923]
[1673334362217,33.10102818,1325.0,1324.9,0.02205923]
[1673334368724,30.27768273,1325.0,1324.9,0.02205923]
[1673334369336,22.73052273,1325.0,1324.9,0.02205923]
[1673334369757,26.11853727,1325.0,1324.9,0.02205923]
[1673334370633,33.66569727,1325.0,1324.9,0.02205923]
[1673334373854,33.10261667,1325.0,1324.9,0.02205923]
[1673334374540,33.15261667,1325.0,1324.9,0.02205923]
[1673334376362,33.10261667,1325.0,1324.9,0.02205923]
[1673334376573,33.15261667,1325.0,1324.9,0.02205923]
[1673334378310,40.69861667,1325.0,1324.9,0.02205923]
[1673334378534,40.64861667,1325.0,1324.9,0.02205923]
[1673334381123,40.64861667,1325.0,1324.9,0.01845112]
[1673334388985,2.5,1324.9,1324.7,6.54805995]
[1673334389335,2.82562555,1324.8,1324.7,6.54805995]
[1673334389583,2.82562555,1324.8,1324.7,1.93928434]
[1673334389724,2.82562555,1324.8,1324.7,1.87328434]
[1673334391093,2.82562555,1324.8,1324.6,12.50481581]
[1673334391299,2.82562555,1324.8,1324.6,12.49575256]
[1673334392919,1.13025022,1324.7,1324.6,11.36511962]
[1673334393154,2.82562555,1324.7,1324.6,13.23849188]
[1673334394187,1.13025022,1324.7,1324.6,13.23849188]
[1673334395026,3.95587577,1324.7,1324.6,0.12837679]
[1673334395244,3.95587577,1324.7,1324.6,0.06237679]
[1673334395935,7.75353641,1324.7,1324.6,0.06237679]
[1673334396147,15.32940641,1324.7,1324.6,0.06237679]
[1673334396374,13.63403108,1324.7,1324.6,0.06237679]
[1673334396589,18.79899429,1324.7,1324.6,0.06237679]
[1673334396758,16.53849385,1324.7,1324.6,0.06237679]
[1673334397546,18.79899429,1324.7,1324.6,0.06237679]
[1673334399973,11.53041415,1324.7,1324.6,0.06237679]
[1673334400123,1.72104371,1324.7,1324.6,0.06237679]
[1673334400338,2.82321633,1324.7,1324.6,0.06237679]
[1673334400549,2.8232217,1324.7,1324.6,0.06237679]
[1673334403606,1.12917799,1324.7,1324.6,0.06237679]
[1673334405271,2.8232217,1324.7,1324.6,0.06237679]
[1673334406573,10.3720917,1324.7,1324.6,0.06237679]
[1673334406745,8.70504799,1324.7,1324.6,0.06237679]
[1673334407170,10.3990917,1324.7,1324.6,0.06237679]
[1673334409808,21.62239291,1324.7,1324.6,0.06237679]
[1673334410337,32.96892355,1324.7,1324.6,0.06237679]
[1673334410682,31.83974556,1324.7,1324.6,0.06237679]
[1673334412427,34.100246,1324.7,1324.6,0.06237679]
[1673334412885,26.551376,1324.7,1324.6,0.06237679]
[1673334413421,26.551376,1324.7,1324.6,0.05851409]
[1673334413633,26.601376,1324.7,1324.6,0.05851409]
[1673334414427,24.90733229,1324.7,1324.6,0.05851409]
[1673334414638,26.59960628,1324.7,1324.6,0.05851409]
[1673334419678,26.54960628,1324.7,1324.6,0.05851409]
[1673334426036,26.59960628,1324.7,1324.6,0.05851409]
[1673334426298,26.54960628,1324.7,1324.6,0.05851409]
[1673334427512,25.41758699,1324.7,1324.6,0.05851409]
[1673334428629,24.28910584,1324.7,1324.6,0.05851409]
[1673334428845,20.61467463,1324.7,1324.6,0.05851409]
[1673334430246,21.74357923,1324.7,1324.6,0.05851409]
[1673334430562,20.61467463,1324.7,1324.6,0.05851409]
[1673334430925,24.00783502,1324.7,1324.6,0.05851409]
[1673334432660,21.74733458,1324.7,1324.6,0.05851409]
[1673334432822,25.91447349,1324.7,1324.6,0.05851409]
[1673334434283,26.53087349,1324.7,1324.6,0.05851409]
[1673334435809,18.41656253,1324.7,1324.6,0.05851409]
[1673334436027,5.72782692,1324.7,1324.6,0.05851409]
[1673334436182,0.014,1324.7,1324.6,38.49889473]
[1673334436395,7.598,1325.0,1324.8,0.975]
[1673334436751,7.598,1325.0,1324.9,26.89603372]
[1673334436959,7.598,1325.0,1324.9,31.89994175]
[1673334437284,7.598,1325.0,1324.9,34.07918357]
[1673334437892,7.598,1325.0,1324.9,34.07816882]
[1673334438104,7.598,1325.0,1324.9,38.96131652]
[1673334438634,7.598,1325.0,1324.9,42.38931652]
[1673334438992,7.598,1325.0,1324.9,39.58013641]
[1673334440959,7.598,1325.0,1324.9,37.70688142]
[1673334441409,7.598,1325.0,1324.9,34.0203377]
[1673334441572,7.598,1325.0,1324.9,32.3063377]
[1673334442732,7.598,1325.0,1324.9,35.99288142]
[1673334446408,7.59413315,1325.0,1324.9,35.99288142]
[1673334448115,11.39179379,1325.0,1324.8,0.014]
[1673334448357,19.69326574,1325.0,1324.9,0.064]
[1673334448513,19.69326574,1325.0,1324.8,0.014]
[1673334448514,23.67430286,1325.0,1324.8,0.014]
[1673334448715,0.5663,1324.9,1324.8,0.014]
[1673334449137,3.82214971,1324.9,1324.8,0.014]
[1673334449343,21.95788288,1324.9,1324.8,0.014]
[1673334449631,28.23226238,1324.9,1324.8,0.014]
[1673334449766,36.86450905,1324.9,1324.8,0.014]
[1673334450398,37.19176546,1324.9,1324.8,0.014]
[1673334451785,44.73949546,1324.9,1324.8,0.014]
[1673334455149,44.78949546,1324.9,1324.8,0.014]
[1673334457157,44.73949546,1324.9,1324.8,0.014]
[1673334459551,45.86447369,1324.9,1324.8,0.014]
[1673334459916,44.73949546,1324.9,1324.8,0.014]
[1673334460336,45.86447369,1324.9,1324.8,0.014]
[1673334461389,47.78196185,1324.9,1324.8,0.014]
[1673334461714,47.56411437,1324.9,1324.8,0.014]
[1673334463015,49.25160253,1324.9,1324.8,0.014]
[1673334463169,52.25160253,1324.9,1324.8,0.014]
[1673334464748,50.20707274,1324.9,1324.8,0.014]
[1673334468325,49.08209451,1324.9,1324.8,0.014]
[1673334468817,50.20623478,1324.9,1324.8,0.014]
[1673334469333,49.08209451,1324.9,1324.8,0.014]
[1673334470216,51.33284308,1324.9,1324.8,0.014]
[1673334470903,50.63584308,1324.9,1324.8,0.014]
[1673334471898,51.77322548,1324.9,1324.8,0.014]
[1673334472109,50.3035848,1324.9,1324.8,0.014]
[1673334472756,50.3035848,1324.9,1324.8,0.01145558]
[1673334473003,47.47871424,1324.9,1324.8,0.01145558]
[1673334476155,49.16466203,1324.9,1324.8,0.01145558]
[1673334476466,47.47871424,1324.9,1324.8,0.01145558]
[1673334476845,49.1646839,1324.9,1324.8,0.01145558]
[1673334477210,47.47871424,1324.9,1324.8,0.01145558]
[1673334479418,49.16551366,1324.9,1324.8,0.01145558]
[1673334480892,47.47871424,1324.9,1324.8,0.01145558]
[1673334481469,46.11271424,1324.9,1324.8,0.01145558]
[1673334482323,48.9375848,1324.9,1324.8,0.01145558]
[1673334482980,48.93849006,1324.9,1324.8,0.01145558]
[1673334484027,48.93849006,1324.9,1324.6,0.05851409]
[1673334484261,3.62575873,1324.7,1324.6,0.05851409]
[1673334484417,30.07002937,1324.7,1324.6,0.05851409]
[1673334484630,34.8354415,1324.7,1324.6,0.05851409]
[1673334484874,36.52407959,1324.7,1324.6,0.05851409]
[1673334485618,36.90768258,1324.7,1324.6,0.05851409]
[1673334486963,38.03357768,1324.7,1324.6,0.05851409]
[1673334490958,36.34493959,1324.7,1324.6,0.05851409]
[1673334492746,36.34493959,1324.7,1324.6,0.05643918]
[1673334493619,39.16981015,1324.7,1324.6,0.05643918]
[1673334494199,36.34493959,1324.7,1324.6,0.05643918]
[1673334494457,39.21981015,1324.7,1324.6,0.05643918]
[1673334496453,36.91815632,1324.7,1324.6,0.05643918]
[1673334497295,39.1774519,1324.7,1324.6,0.05643918]
[1673334498824,36.91815632,1324.7,1324.6,0.05643918]
[1673334499449,40.7142792,1324.7,1324.6,0.05643918]
[1673334499675,36.91815632,1324.7,1324.6,0.05643918]
[1673334500296,39.17784999,1324.7,1324.6,0.05643918]
[1673334500956,36.91815632,1324.7,1324.6,0.05643918]
[1673334501131,39.17842822,1324.7,1324.6,0.05643918]
[1673334502122,36.91815632,1324.7,1324.6,0.05643918]
[1673334502931,39.17844943,1324.7,1324.6,0.05643918]
[1673334503143,39.17837282,1324.7,1324.6,0.05643918]
[1673334503576,36.91815632,1324.7,1324.6,0.05643918]
[1673334503924,39.17835334,1324.7,1324.6,0.05643918]
[1673334504813,36.91815632,1324.7,1324.6,0.05643918]
[1673334510437,40.7142792,1324.7,1324.6,0.05643918]
[1673334510605,36.91815632,1324.7,1324.6,0.05643918]
[1673334512735,39.17884829,1324.7,1324.6,0.05643918]
[1673334513475,36.91815632,1324.7,1324.6,0.05643918]
[1673334513845,39.17895526,1324.7,1324.6,0.05643918]
[1673334514189,36.91815632,1324.7,1324.6,0.05643918]
[1673334514429,39.17894845,1324.7,1324.6,0.05643918]
[1673334516101,39.17894845,1324.7,1324.6,0.05343029]
[1673334517532,16.53233845,1324.7,1324.6,0.05343029]
[1673334517741,39.17894845,1324.7,1324.6,0.05343029]
[1673334520749,14.04292576,1324.7,1324.6,0.05343029]
[1673334520907,5.92847474,1324.7,1324.6,0.05343029]
[1673334521375,8.18926687,1324.7,1324.6,0.05343029]
[1673334521590,15.73813687,1324.7,1324.6,0.05343029]
[1673334523567,23.28700687,1324.7,1324.6,0.05343029]
[1673334525958,15.73813687,1324.7,1324.6,0.05343029]
[1673334527055,5.92847474,1324.7,1324.6,0.05343029]
[1673334527262,13.47734474,1324.7,1324.6,0.05343029]
[1673334528417,5.92847474,1324.7,1324.6,0.05343029]
[1673334528628,5.92553587,1324.7,1324.6,0.05343029]
[1673334529258,13.47440587,1324.7,1324.6,0.05343029]
[1673334530930,15.735198,1324.7,1324.6,0.05343029]
[1673334531470,23.284068,1324.7,1324.6,0.05343029]
[1673334531639,21.58885689,1324.7,1324.6,0.05343029]
[1673334532059,14.03998689,1324.7,1324.6,0.05343029]
[1673334532633,21.58885689,1324.7,1324.6,0.05343029]
[1673334537787,14.03998689,1324.7,1324.6,0.05343029]
[1673334538219,21.58885689,1324.7,1324.6,0.05343029]
[1673334538371,14.03998689,1324.7,1324.6,0.05343029]
[1673334538588,21.58885689,1324.7,1324.6,0.05343029]
[1673334539123,14.03998689,1324.7,1324.6,0.05343029]
[1673334540269,21.58885689,1324.7,1324.6,0.05343029]
[1673334540484,22.47293816,1324.7,1324.6,0.05343029]
[1673334541050,25.29780872,1324.7,1324.6,0.05343029]
[1673334542101,17.74893872,1324.7,1324.6,0.05343029]
[1673334542932,25.29780872,1324.7,1324.6,0.05343029]
[1673334544999,17.74893872,1324.7,1324.6,0.05343029]
[1673334545212,25.29780872,1324.7,1324.6,0.05343029]
[1673334545454,17.74893872,1324.7,1324.6,0.05343029]
[1673334546398,14.03998689,1324.7,1324.6,0.05343029]
[1673334546579,16.86485745,1324.7,1324.6,0.05343029]
[1673334546797,24.41372745,1324.7,1324.6,0.05343029]
[1673334551874,24.41372745,1324.7,1324.6,0.05122116]
[1673334557411,31.96259745,1324.7,1324.6,0.05122116]
[1673334557605,29.7845072,1324.7,1324.6,0.05122116]
[1673334558067,26.95963664,1324.7,1324.6,0.05122116]
[1673334558865,29.7845072,1324.7,1324.6,0.05122116]
[1673334559357,26.95963664,1324.7,1324.6,0.05122116]
[1673334559757,29.7845072,1324.7,1324.6,0.05122116]
[1673334559929,26.95963664,1324.7,1324.6,0.05122116]
[1673334560161,29.7845072,1324.7,1324.6,0.05122116]
[1673334560496,26.95963664,1324.7,1324.6,0.05122116]
[1673334562388,28.65371742,1324.7,1324.6,0.05122116]
[1673334563067,26.95963664,1324.7,1324.6,0.05122116]
[1673334563302,28.65375686,1324.7,1324.6,0.05122116]
[1673334564935,26.95963664,1324.7,1324.6,0.05122116]
[1673334565110,28.65380326,1324.7,1324.6,0.05122116]
[1673334567767,26.39301113,1324.7,1324.6,0.05122116]
[1673334567926,28.65380326,1324.7,1324.6,0.05122116]
[1673334568601,21.10493326,1324.7,1324.6,0.05122116]
[1673334569029,8.18528351,1324.7,1324.6,0.05122116]
[1673334569552,8.18528351,1324.7,1324.6,1.92463301]
[1673334569553,3.25933987,1324.7,1324.6,1.92463301]
[1673334569765,0.38360299,1324.7,1324.6,5.72040084]
[1673334569920,1.51322429,1324.7,1324.6,5.78640084]
[1673334570134,0.38360299,1324.7,1324.6,3.02928568]
[1673334570390,1.51323345,1324.7,1324.6,2.96328568]
[1673334570565,0.38360299,1324.7,1324.6,2.96328568]
[1673334570779,1.51328528,1324.7,1324.6,2.96328568]
[1673334570994,1.51328468,1324.7,1324.6,2.96328568]
[1673334571206,1.51286481,1324.7,1324.6,2.96328568]
[1673334571415,0.38360299,1324.7,1324.6,2.96328568]
[1673334571624,1.51286358,1324.7,1324.6,2.96328568]
[1673334571929,1.51289404,1324.7,1324.6,2.96328568]
[1673334572144,1.512893,1324.7,1324.6,2.96328568]
[1673334572357,0.38360299,1324.7,1324.6,2.96328568]
[1673334572776,1.51298259,1324.7,1324.6,2.96328568]
[1673334572986,1.51298416,1324.7,1324.6,2.96328568]
[1673334573249,0.38360299,1324.7,1324.6,2.96328568]
[1673334573405,1.51274382,1324.7,1324.6,2.96328568]
[1673334573621,1.51273693,1324.7,1324.6,2.96328568]
[1673334573849,0.38360299,1324.7,1324.6,1.08987383]
[1673334574188,1.51273641,1324.7,1324.6,1.08987383]
[1673334574346,0.38360299,1324.7,1324.6,1.08987383]
[1673334574760,1.51271406,1324.7,1324.6,1.08987383]
[1673334575012,0.38360299,1324.7,1324.6,1.08987383]
[1673334575434,0.38360299,1324.7,1324.6,0.05122116]
[1673334575435,1.51262702,1324.7,1324.6,0.05122116]
[1673334575652,0.38360299,1324.7,1324.6,0.05122116]
[1673334575812,1.51263208,1324.7,1324.6,0.05122116]
[1673334576021,0.38360299,1324.7,1324.6,0.05122116]
[1673334576232,1.51263226,1324.7,1324.6,0.05122116]
[1673334576483,0.38360299,1324.7,1324.6,0.05122116]
[1673334576796,1.51258486,1324.7,1324.6,0.05122116]
[1673334579694,9.06145486,1324.7,1324.6,0.05122116]
[1673334579911,9.06145486,1324.7,1324.6,0.04864864]
[1673334579912,31.10026006,1324.7,1324.6,0.04864864]
[1673334580441,16.00252006,1324.7,1324.6,0.04864864]
[1673334580798,13.1776495,1324.7,1324.6,0.04864864]
[1673334581168,16.00252006,1324.7,1324.6,0.04864864]
[1673334582452,8.45365006,1324.7,1324.6,0.04864864]
[1673334583055,13.1776495,1324.7,1324.6,0.04864864]
[1673334584046,5.6287795,1324.7,1324.6,0.04864864]
[1673334584217,13.1776495,1324.7,1324.6,0.04864864]
[1673334584428,14.86949443,1324.7,1324.6,0.04864864]
[1673334585615,14.73515261,1324.7,1324.6,0.04864864]
[1673334585995,13.04330768,1324.7,1324.6,0.04864864]
[1673334586211,14.7351656,1324.7,1324.6,0.04864864]
[1673334586421,13.04330768,1324.7,1324.6,0.04864864]
[1673334586669,14.73513995,1324.7,1324.6,0.04864864]
[1673334586997,13.04330768,1324.7,1324.6,0.04864864]
[1673334587943,16.84096832,1324.7,1324.6,0.04864864]
[1673334588545,24.38983832,1324.7,1324.6,0.04864864]
[1673334589474,16.84096832,1324.7,1324.6,0.04864864]
[1673334590141,10.98424083,1324.7,1324.6,0.04864864]
[1673334590310,8.05185645,1324.7,1324.6,0.04864864]
[1673334593743,5.79106432,1324.7,1324.6,0.04864864]
[1673334594247,8.05185645,1324.7,1324.6,0.04864864]
[1673334594444,5.79106432,1324.7,1324.6,0.04864864]
[1673334594830,8.05185645,1324.7,1324.6,0.04864864]
[1673334595497,5.79106432,1324.7,1324.6,0.04864864]
[1673334595688,8.05185645,1324.7,1324.6,0.04864864]
[1673334598463,5.79106432,1324.7,1324.6,0.04864864]
[1673334598626,8.05185645,1324.7,1324.6,0.04864864]
[1673334599049,5.79106432,1324.7,1324.6,0.04864864]
[1673334599275,8.05185645,1324.7,1324.6,0.04864864]
[1673334599485,5.79106432,1324.7,1324.6,0.04864864]
[1673334600941,8.05185645,1324.7,1324.6,0.04565969]
[1673334601189,8.05190785,1324.7,1324.6,0.04565969]
[1673334601396,15.60077785,1324.7,1324.6,0.04565969]
[1673334602572,8.05190785,1324.7,1324.6,0.04565969]
[1673334605411,5.79111572,1324.7,1324.6,0.04565969]
[1673334605568,8.05190785,1324.7,1324.6,0.04565969]
[1673334606093,6.91929281,1324.7,1324.6,0.04565969]
[1673334610536,5.79111572,1324.7,1324.6,0.04565969]
[1673334611031,9.31582856,1324.7,1324.6,0.04565969]
[1673334611241,11.57662069,1324.7,1324.6,0.04565969]
[1673334612257,9.31582856,1324.7,1324.6,0.04565969]
[1673334612442,6.91946473,1324.7,1324.6,0.04565969]
[1673334614393,3.12180409,1324.7,1324.6,0.04565969]
[1673334614604,3.06980409,1324.7,1324.6,0.04565969]
[1673334615764,1.37761018,1324.7,1324.6,0.04565969]
[1673334616215,1.37786743,1324.7,1324.6,0.04565969]
[1673334617554,1.37786743,1324.7,1324.6,7.59509969]
[1673334617774,1.37790699,1324.7,1324.6,9.53449129]
[1673334617993,0.24926117,1324.7,1324.6,12.28824656]
[1673334618413,1.37791752,1324.7,1324.6,12.28824656]
[1673334618646,0.24926117,1324.7,1324.6,12.28824656]
[1673334619380,1.37802037,1324.7,1324.6,12.28824656]
[1673334619540,0.24926117,1324.7,1324.6,12.28824656]
[1673334619745,1.37781291,1324.7,1324.6,29.08912656]
[1673334619956,0.052,1324.9,1324.8,2.87263049]
[1673334620170,9.28632706,1325.0,1324.8,6.74828514]
[1673334620419,9.28632706,1325.0,1324.8,4.94089354]
[1673334620609,0.24795031,1324.9,1324.8,12.42318354]
[1673334620814,0.24795031,1324.9,1324.8,14.36227804]
[1673334621484,0.24795031,1324.9,1324.8,12.48918354]
[1673334621694,7.59413315,1325.0,1324.8,12.48918354]
[1673334622061,9.28632706,1325.0,1324.8,12.48918354]
[1673334622479,9.28632706,1325.0,1324.8,4.94089354]
[1673334622689,9.28632706,1325.0,1324.8,12.42312354]
[1673334622902,9.28632706,1325.0,1324.8,4.94089354]
[1673334623165,9.28632706,1325.0,1324.8,4.87489354]
[1673334628846,9.28632706,1325.0,1324.8,3.15989354]
[1673334631142,7.59413315,1325.0,1324.8,10.70813354]
[1673334631365,7.59413315,1325.0,1324.8,10.77413354]
[1673334631551,9.28632706,1325.0,1324.8,10.77413354]
[1673334632796,7.59413315,1325.0,1324.8,10.77413354]
[1673334636307,7.59413315,1325.0,1324.8,18.32243354]
[1673334637363,7.59413315,1325.0,1324.8,10.77413354]
[1673334640170,7.59413315,1325.0,1324.8,18.32243354]
[1673334640586,7.59413315,1325.0,1324.8,10.77413354]
[1673334641067,7.59413315,1325.0,1324.8,18.32243354]
[1673334641365,7.59413315,1325.0,1324.8,10.77413354]
[1673334643799,7.59413315,1325.0,1324.8,3.22589354]
[1673334643959,7.59413315,1325.0,1324.8,10.70819354]
[1673334644169,7.59413315,1325.0,1324.8,10.77419354]
[1673334646069,7.59413315,1325.0,1324.8,18.32249354]
[1673334647901,7.59413315,1325.0,1324.8,10.77419354]
[1673334650316,9.28632706,1325.0,1324.8,2.93863049]
[1673334650467,9.28632706,1325.0,1324.8,2.87263049]
[1673334655415,11.54711919,1325.0,1324.8,2.87263049]
[1673334658923,11.54711919,1325.0,1324.8,10.42081049]
[1673334659244,11.54711919,1325.0,1324.8,10.48681049]
[1673334659624,1.69219391,1324.9,1324.8,10.48681049]
[1673334659838,1.69219391,1324.9,1324.8,15.31242019]
[1673334660079,9.85492528,1325.0,1324.8,15.31242019]
[1673334660296,1.69494395,1324.9,1324.8,10.48681049]
[1673334660501,1.69495533,1324.9,1324.8,12.35995121]
[1673334660658,9.85492528,1325.0,1324.8,12.35995121]
[1673334660879,11.54988729,1325.0,1324.8,10.48681049]
[1673334661242,11.55005726,1325.0,1324.8,10.48681049]
[1673334661603,9.85492528,1325.0,1324.8,10.48681049]
[1673334661816,11.55017374,1325.0,1324.8,10.48681049]
[1673334663654,11.55017374,1325.0,1324.8,2.93863049]
[1673334663820,11.55017374,1325.0,1324.8,2.87263049]
[1673334664580,9.85492528,1325.0,1324.8,2.87263049]
[1673334664767,11.55002186,1325.0,1324.8,2.87263049]
[1673334665197,11.55002186,1325.0,1324.8,10.42087049]
[1673334665427,11.55002186,1325.0,1324.8,10.48687049]
[1673334668948,9.28922973,1325.0,1324.8,10.48687049]
[1673334669238,9.28922973,1325.0,1324.8,11.61809059]
[1673334669460,11.55002186,1325.0,1324.8,10.48687049]
[1673334669820,11.55002186,1325.0,1324.8,2.93863049]
[1673334670070,11.55002186,1325.0,1324.8,2.87263049]
[1673334670906,11.55002186,1325.0,1324.8,10.42092049]
[1673334671244,11.55002186,1325.0,1324.8,10.48692049]
[1673334671437,11.55002186,1325.0,1324.8,11.61814059]
[1673334671774,9.28922973,1325.0,1324.8,11.61814059]
[1673334671984,0.05,1324.9,1324.8,11.61814059]
[1673334672136,0.05,1324.9,1324.8,16.61331967]
[1673334673240,0.05,1324.9,1324.8,15.48209957]
[1673334674058,11.55002186,1325.0,1324.8,15.48209957]
[1673334674270,11.55002186,1325.0,1324.8,10.48692049]
[1673334676657,11.55002186,1325.0,1324.8,2.93863049]
[1673334676875,11.55002186,1325.0,1324.7,17.99060458]
[1673334677095,11.55002186,1325.0,1324.8,1.87307838]
[1673334677301,19.09721186,1325.0,1324.8,1.87307838]
[1673334677757,19.09721186,1325.0,1324.7,5.70339908]
[1673334677973,11.55002186,1325.0,1324.8,1.87307891]
[1673334679657,0.34775886,1324.9,1324.8,1.87307891]
[1673334681328,0.34775886,1324.9,1324.8,3.00429901]
[1673334681536,0.34775886,1324.9,1324.8,1.87307891]
[1673334681910,2.04298893,1324.9,1324.8,1.87307891]
[1673334682121,0.34775886,1324.9,1324.8,1.87307891]
[1673334686636,11.55017401,1325.0,1324.8,1.87307891]
[1673334690665,0.05,1324.9,1324.8,1.87307891]
[1673334692680,11.55017401,1325.0,1324.8,1.87307891]
[1673334696631,19.09744401,1325.0,1324.8,1.87307891]
[1673334696860,26.64471401,1325.0,1324.8,1.87307891]
[1673334697249,19.09744401,1325.0,1324.8,1.87307891]
[1673334698132,1.69524873,1324.9,1324.8,1.87307891]
[1673334698348,1.69524873,1324.9,1324.7,1.1312201]
[1673334698349,3.95604086,1324.9,1324.7,1.1312201]
[1673334698558,3.95604086,1324.9,1324.7,3.00442133]
[1673334699031,1.69524873,1324.9,1324.7,3.00442133]
[1673334704085,1.69524873,1324.9,1324.7,10.55319133]
[1673334704295,1.69524873,1324.9,1324.8,1.87320123]
[1673334704549,25.98969528,1325.0,1324.8,1.87320123]
[1673334704864,1.69491463,1324.9,1324.8,1.87320123]
[1673334705076,25.98969528,1325.0,1324.8,1.87320123]
[1673334705257,27.68462907,1325.0,1324.8,1.87320123]
[1673334705687,20.13735907,1325.0,1324.8,1.87320123]
[1673334706606,20.13735907,1325.0,1324.8,9.42142123]
[1673334706875,20.13735907,1325.0,1324.8,7.61422]
[1673334709760,17.87656694,1325.0,1324.9,1.87300812]
[1673334709967,17.87656694,1325.0,1324.8,16.2936601]
[1673334710395,17.87656694,1325.0,1324.9,1.87300494]
[1673334710806,17.87656694,1325.0,1324.9,9.42073494]
[1673334711022,17.87656694,1325.0,1324.9,7.61373]
[1673334711350,9.28906694,1325.0,1324.9,9.48671972]
[1673334712323,9.28906694,1325.0,1324.9,7.61373]
[1673334717017,9.28906694,1325.0,1324.9,9.48672409]
[1673334718011,9.28906694,1325.0,1324.9,7.61373]
[1673334718425,9.28906694,1325.0,1324.9,9.48672372]
[1673334718615,7.59413315,1325.0,1324.9,9.48323537]
[1673334720806,9.28906694,1325.0,1324.9,7.61024165]
[1673334721233,7.59413315,1325.0,1324.9,0.066]
[1673334721441,9.28906694,1325.0,1324.8,16.2936601]
[1673334721921,9.28906694,1325.0,1324.8,15.16244]
[1673334725436,9.28906694,1325.0,1324.8,7.61422]
[1673334725593,9.28906694,1325.0,1324.8,0.066]
[1673334725939,9.28906694,1325.0,1324.7,27.25435458]
[1673334726258,9.28906694,1325.0,1324.8,1.87304948]